bitfinex/quotes_SOLUSD_20250929
["timestamp","ask_amount","ask_price","bid_price","bid_amount"]
[1759142395722,0.7,207.69,207.68,42.13505917]
[1759142396953,0.7,207.69,207.68,37.32]
[1759142397826,0.2,207.72,207.68,37.32]
[1759142398039,0.7,207.71,207.68,37.32]
[1759142398237,0.7,207.7,207.68,37.32]
[1759142399043,0.7,207.69,207.64,14.78169961]
[1759142399252,0.7,207.68,207.61,4.81672366]
[1759142399449,0.7,207.67,207.62,37.3]
[1759142399755,0.7,207.67,207.62,37.99]
[1759142400624,0.7,207.66,207.59,0.69]
[1759142400820,0.7,207.66,207.59,4.81715002]
[1759142401025,1.42770919,207.63,207.53,0.69]
[1759142401285,1.42770919,207.61,207.53,22.47]
[1759142401430,1.42770919,207.61,207.41,20.0]
[1759142401431,1.42770919,207.56,207.47,4.81997397]
[1759142401625,1.42770919,207.56,207.46,0.69]
[1759142401626,0.7,207.55,207.46,0.69]
[1759142402135,2.12770919,207.55,207.47,18.38]
[1759142402335,0.7,207.54,207.48,0.69]
[1759142402735,0.7,207.54,207.49,4.81950937]
[1759142403071,1.42770919,207.56,207.49,4.81950937]
[1759142403072,0.7,207.53,207.49,4.81950937]
[1759142404760,0.7,207.55,207.48,16.86879109]
[1759142405071,0.7,207.55,207.48,17.55879109]
[1759142406565,0.7,207.57,207.49,0.69]
[1759142406945,0.7,207.57,207.5,16.86746987]
[1759142407150,0.7,207.56,207.5,16.86746987]
[1759142408660,0.7,207.55,207.5,16.86746987]
[1759142408954,0.7,207.55,207.5,12.04819277]
[1759142409151,0.7,207.55,207.5,12.73819277]
[1759142409354,0.7,207.54,207.5,49.40819277]
[1759142410050,0.7,207.53,207.48,5.50974166]
[1759142410280,0.7,207.52,207.49,37.36]
[1759142410479,0.7,207.54,207.49,37.36]
[1759142410652,0.7,207.54,207.49,38.05]
[1759142411157,0.7,207.54,207.5,4.8192771]
[1759142411561,0.7,207.56,207.5,5.5092771]
[1759142413076,4.81777727,207.57,207.5,4.8192771]
[1759142413274,0.68,207.56,207.5,4.8192771]
[1759142413451,0.68,207.55,207.49,4.81948957]
[1759142413785,0.68,207.54,207.49,42.19948957]
[1759142414072,0.68,207.53,207.49,42.19948957]
[1759142414278,1.42770919,207.56,207.49,42.85948957]
[1759142414570,0.68,207.55,207.49,42.85948957]
[1759142417782,0.68,207.54,207.49,42.19948957]
[1759142418077,2.10770919,207.53,207.49,37.38]
[1759142418378,0.68,207.52,207.49,37.38]
[1759142418675,0.68,207.51,207.49,37.38]
[1759142420197,0.68,207.5,207.44,5.48053273]
[1759142420498,0.68,207.52,207.45,0.66]
[1759142420678,0.68,207.52,207.44,42.16053273]
[1759142420877,0.68,207.51,207.44,42.16053273]
[1759142421077,0.68,207.5,207.44,42.16053273]
[1759142421305,5.49932296,207.5,207.44,42.16053273]
[1759142421474,5.49903726,207.52,207.45,0.67]
[1759142422689,5.49903726,207.52,207.44,42.16053273]
[1759142422690,17.54606887,207.52,207.44,42.16053273]
[1759142422888,0.68,207.51,207.44,42.16053273]
[1759142423093,0.68,207.51,207.44,42.83053273]
[1759142423391,0.68,207.5,207.44,42.83053273]
[1759142424387,5.49935777,207.5,207.44,42.83053273]
[1759142425300,5.49935777,207.5,207.45,0.67]
[1759142425597,5.49935777,207.5,207.45,5.49031826]
[1759142426504,5.49935777,207.5,207.45,5.49038667]
[1759142426797,0.68,207.5,207.46,0.67]
[1759142427306,5.49882696,207.52,207.45,4.82038667]
[1759142427476,5.49882696,207.52,207.46,0.67]
[1759142427680,5.49882696,207.52,207.46,5.49000661]
[1759142429409,5.49909001,207.51,207.46,5.49000661]
[1759142429606,0.68,207.5,207.46,5.49000661]
[1759142429904,0.68,207.5,207.46,4.82000661]
[1759142430483,0.68,207.5,207.45,4.82043865]
[1759142430685,0.68,207.5,207.46,0.67]
[1759142432212,0.68,207.5,207.45,4.82043865]
[1759142432398,0.68,207.5,207.45,5.49043865]
[1759142432591,0.68,207.5,207.45,4.82043865]
[1759142432796,4.81881264,207.52,207.46,5.49006469]
[1759142432988,5.49881264,207.52,207.46,5.49006469]
[1759142433192,0.68,207.51,207.46,4.82006469]
[1759142433414,0.68,207.5,207.46,5.49006469]
[1759142434406,0.68,207.5,207.45,5.49040222]
[1759142434610,4.81914034,207.51,207.45,4.82040222]
[1759142434810,61.40714311,207.58,207.45,4.82040222]
[1759142434811,0.68,207.56,207.46,0.67]
[1759142435116,1.42770919,207.55,207.46,0.67]
[1759142435422,0.68,207.54,207.46,0.67]
[1759142435720,1.42770919,207.51,207.45,4.82040222]
[1759142435902,5.49950892,207.5,207.44,42.12064681]
[1759142436112,0.68,207.49,207.44,42.12064681]
[1759142436302,0.68,207.48,207.44,42.12064681]
[1759142438322,0.68,207.48,207.44,42.79064681]
[1759142438833,6.24742857,207.49,207.44,42.79064681]
[1759142439015,6.92742857,207.49,207.44,42.79064681]
[1759142439922,6.24742857,207.49,207.44,42.12064681]
[1759142440222,6.92742857,207.49,207.44,42.79064681]
[1759142441217,2.10770919,207.49,207.45,0.67]
[1759142441419,2.10770919,207.49,207.46,0.67]
[1759142441420,1.42770919,207.49,207.46,0.67]
[1759142441820,1.42770919,207.49,207.44,42.79064681]
[1759142442020,2.10770919,207.49,207.45,0.67]
[1759142442218,2.10770919,207.49,207.44,42.12064681]
[1759142442610,2.10770919,207.49,207.44,42.79064681]
[1759142442811,0.68,207.48,207.44,37.97]
[1759142444223,0.68,207.48,207.44,42.79060297]
[1759142444530,2.91516125,207.48,207.44,42.79060297]
[1759142446812,0.68,207.48,207.44,42.79060297]
[1759142447011,4.81904486,207.51,207.44,42.79060297]
[1759142447210,2.23516125,207.48,207.44,42.79060297]
[1759142447412,2.23516125,207.48,207.45,0.67]
[1759142448033,2.23516125,207.48,207.45,5.49031571]
[1759142448229,2.23516125,207.48,207.41,0.67]
[1759142448230,0.68,207.47,207.41,0.67]
[1759142448528,0.68,207.47,207.37,28.32300275]
[1759142448529,2.23516125,207.42,207.37,28.32300275]
[1759142448714,2.23516125,207.39,207.37,28.32300275]
[1759142448920,2.91516125,207.39,207.37,28.32300275]
[1759142449122,0.68,207.38,207.37,28.32300275]
[1759142449645,0.68,207.38,207.33,5.0]
[1759142449923,2.23516125,207.34,207.33,4.41]
[1759142450128,16.88130033,207.33,207.19,0.1]
[1759142450326,16.88130033,207.33,207.22,0.67]
[1759142450545,2.23516125,207.28,207.22,0.17]
[1759142450716,2.23516125,207.3,207.21,4.92601677]
[1759142451245,2.23516125,207.28,207.21,4.92601677]
[1759142451418,2.23516125,207.28,207.19,0.1]
[1759142452121,2.23516125,207.31,207.19,0.1]
[1759142452319,2.23516125,207.32,207.19,0.1]
[1759142452525,2.23516125,207.3,207.2,0.72]
[1759142452721,2.23516125,207.3,207.2,55.11189188]
[1759142452920,2.23516125,207.3,207.21,0.72]
[1759142453127,2.23516125,207.33,207.21,38.26]
[1759142453432,2.23516125,207.31,207.22,38.26]
[1759142453612,2.23516125,207.29,207.23,0.72]
[1759142453811,0.5,207.31,207.23,0.72]
[1759142454027,0.5,207.3,207.23,0.72]
[1759142454223,4.82415939,207.29,207.23,0.72]
[1759142454422,0.5,207.33,207.23,0.72]
[1759142454837,0.5,207.32,207.23,0.72]
[1759142455633,4.82369398,207.31,207.23,5.54551823]
[1759142455837,0.5,207.35,207.24,0.72]
[1759142456044,2.23516125,207.37,207.24,38.32]
[1759142456251,0.5,207.34,207.25,0.72]
[1759142456617,0.5,207.33,207.25,0.72]
[1759142456826,2.73516125,207.33,207.25,0.72]
[1759142457045,0.5,207.32,207.25,0.72]
[1759142457242,5.32369398,207.31,207.22,0.72]
[1759142457426,19.61809019,207.31,207.22,38.38]
[1759142457936,19.61809019,207.31,207.23,0.72]
[1759142458313,5.32369398,207.31,207.23,0.72]
[1759142459122,5.32369398,207.31,207.24,4.82532329]
[1759142460539,4.82345635,207.33,207.25,0.72]
[1759142461414,4.82345635,207.33,207.25,5.5448724]
[1759142461615,4.82345635,207.33,207.26,0.72]
[1759142461836,138.12345635,207.33,207.26,0.72]
[1759142463533,138.12345635,207.33,207.26,5.54483309]
[1759142463926,132.8,207.33,207.27,0.72]
[1759142464120,137.6232471,207.33,207.27,0.72]
[1759142465140,137.6232471,207.33,207.28,4.82439212]
[1759142465346,4.82276344,207.35,207.29,0.72]
[1759142466063,2.73516125,207.36,207.29,0.72]
[1759142466259,7.55784242,207.36,207.29,0.72]
[1759142466558,5.32268117,207.36,207.29,0.72]
[1759142467061,5.32268117,207.36,207.29,5.54403351]
[1759142467446,4.82268117,207.36,207.29,4.82403351]
[1759142467651,4.82268117,207.36,207.3,0.72]
[1759142467949,132.8,207.37,207.3,0.72]
[1759142468362,137.62232281,207.37,207.3,0.72]
[1759142469056,132.8,207.37,207.31,4.82369398]
[1759142469233,137.6221004,207.38,207.32,0.72]
[1759142469437,4.82174617,207.4,207.32,0.72]
[1759142472067,4.82174617,207.4,207.33,4.82322866]
[1759142472254,5.32174617,207.4,207.33,4.82322866]
[1759142472756,5.32174617,207.4,207.33,5.54322866]
[1759142473747,0.5,207.4,207.34,0.72]
[1759142473940,5.32170144,207.4,207.34,0.72]
[1759142475072,2.23516125,207.36,207.27,0.72]
[1759142475250,2.23516125,207.29,207.24,0.72]
[1759142475664,2.23516125,207.29,207.22,4.82578901]
[1759142475665,2.73516125,207.29,207.22,0.72]
[1759142475874,4.82439212,207.28,207.22,0.22]
[1759142476047,4.82439212,207.28,207.21,4.82598504]
[1759142476252,2.23516125,207.26,207.2,4.82625409]
[1759142476551,2.23516125,207.26,207.19,4.92645352]
[1759142476863,0.67,207.25,207.19,4.92645352]
[1759142477055,0.67,207.25,207.19,0.1]
[1759142478154,4.82532329,207.24,207.19,0.1]
[1759142478464,0.67,207.23,207.19,0.1]
[1759142479170,0.67,207.26,207.2,0.71]
[1759142480173,0.67,207.26,207.2,5.53608744]
[1759142480174,5.49492462,207.26,207.2,5.53608744]
[1759142480880,4.82492462,207.26,207.21,0.71]
[1759142481373,5.53492462,207.26,207.21,0.71]
[1759142482979,0.71,207.26,207.21,5.53589978]
[1759142483467,0.71,207.25,207.19,5.61633642]
[1759142483661,5.53521732,207.25,207.19,5.61633642]
[1759142483855,7.05997719,207.27,207.19,5.61633642]
[1759142484081,7.76997719,207.27,207.2,0.69]
[1759142484875,5.53481594,207.27,207.2,0.69]
[1759142485078,7.76997719,207.27,207.2,5.51612912]
[1759142485456,0.71,207.26,207.2,0.69]
[1759142485656,2.23516125,207.25,207.2,0.69]
[1759142485856,2.94516125,207.25,207.2,0.69]
[1759142486476,2.94516125,207.25,207.2,4.82622858]
[1759142486675,2.94516125,207.25,207.2,5.51622858]
[1759142487179,2.94516125,207.25,207.21,0.69]
[1759142487875,2.23516125,207.25,207.21,0.69]
[1759142488088,2.23516125,207.25,207.22,0.69]
[1759142488294,2.23516125,207.32,207.23,0.69]
[1759142488465,2.23516125,207.29,207.21,38.27]
[1759142488776,0.71,207.28,207.21,38.27]
[1759142488978,0.71,207.27,207.21,38.27]
[1759142489278,5.53462892,207.27,207.22,4.82578901]
[1759142489466,5.53462892,207.27,207.22,0.69]
[1759142489675,0.71,207.27,207.22,0.69]
[1759142490877,0.71,207.27,207.23,4.82555614]
[1759142491281,0.71,207.27,207.23,5.51555614]
[1759142492076,0.71,207.27,207.23,0.69]
[1759142492376,5.53466245,207.27,207.23,0.69]
[1759142492961,4.82439212,207.28,207.23,4.82553576]
[1759142493180,4.82439212,207.28,207.24,0.69]
[1759142493371,5.53439212,207.28,207.24,0.69]
[1759142494080,2.94516125,207.31,207.23,4.82553576]
[1759142494375,3.90015693,207.3,207.24,0.69]
[1759142494570,0.71,207.3,207.24,0.69]
[1759142494963,3.90015693,207.3,207.24,0.69]
[1759142495168,0.71,207.3,207.25,4.82509047]
[1759142495371,4.82391097,207.31,207.26,0.69]
[1759142495571,8.7240679,207.31,207.26,0.69]
[1759142496770,4.82348632,207.32,207.27,0.69]
[1759142497072,8.72364325,207.32,207.27,0.69]
[1759142497277,5.53348632,207.32,207.27,0.69]
[1759142497484,0.71,207.31,207.27,0.69]
[1759142497689,4.82348632,207.32,207.27,0.69]
[1759142497883,8.72364325,207.32,207.27,5.51458482]
[1759142498093,5.53348632,207.32,207.27,5.51458482]
[1759142498291,8.72364325,207.32,207.27,5.51458482]
[1759142498595,0.71,207.32,207.28,0.69]
[1759142499088,3.19015693,207.33,207.29,0.69]
[1759142499284,5.53316138,207.34,207.29,0.69]
[1759142499491,8.72331831,207.34,207.29,0.69]
[1759142499680,5.53316138,207.34,207.29,0.69]
[1759142499878,8.72331831,207.34,207.29,0.69]
[1759142500083,5.53316138,207.34,207.29,0.69]
[1759142500276,4.82316138,207.34,207.29,0.69]
[1759142500480,0.71,207.33,207.29,0.69]
[1759142500681,0.71,207.33,207.29,5.51414608]
[1759142500883,4.82316138,207.34,207.29,4.82414608]
[1759142501085,7.05793308,207.35,207.3,0.69]
[1759142501298,5.53277183,207.35,207.3,0.69]
[1759142501592,4.82277183,207.35,207.3,0.69]
[1759142501770,0.71,207.34,207.3,0.69]
[1759142502192,4.82277183,207.35,207.3,0.69]
[1759142502385,5.53277183,207.35,207.3,4.82387189]
[1759142502592,5.53277183,207.35,207.31,0.69]
[1759142503184,4.82277183,207.35,207.28,4.8242252]
[1759142503385,0.71,207.34,207.29,0.69]
[1759142503786,4.82277183,207.35,207.28,4.8242252]
[1759142503991,4.82277183,207.35,207.29,0.69]
[1759142504398,4.82277183,207.35,207.3,4.82392667]
[1759142504600,5.53277183,207.35,207.31,0.69]
[1759142505694,0.71,207.38,207.32,0.69]
[1759142507201,5.5322606,207.38,207.32,5.51327433]
[1759142508302,5.5322606,207.38,207.33,0.69]
[1759142508877,1.43210908,207.36,207.26,0.69]
[1759142509077,1.43210908,207.34,207.26,0.69]
[1759142509282,5.53322866,207.33,207.27,4.82462488]
[1759142509685,0.71,207.32,207.27,4.82462488]
[1759142509986,4.82322866,207.33,207.27,4.82462488]
[1759142509987,0.71,207.31,207.27,4.82462488]
[1759142510189,0.71,207.31,207.27,5.51462488]
[1759142510387,5.53322866,207.33,207.27,4.82462488]
[1759142510594,5.53322866,207.33,207.28,0.69]
[1759142511880,5.51296844,207.35,207.29,0.69]
[1759142513398,5.51296844,207.35,207.27,0.69]
[1759142513934,1.43210908,207.34,207.24,16.88863153]
[1759142514105,1.43210908,207.31,207.24,5.51532329]
[1759142514309,0.69,207.3,207.24,5.51532329]
[1759142515113,0.69,207.3,207.24,0.69]
[1759142515288,4.82415939,207.29,207.24,0.69]
[1759142515610,5.51415939,207.29,207.24,0.69]
[1759142515810,5.51415939,207.29,207.25,0.69]
[1759142515998,4.82415939,207.29,207.25,0.69]
[1759142516199,4.82395135,207.3,207.26,0.69]
[1759142516396,4.82395135,207.3,207.27,0.69]
[1759142516711,4.82395135,207.3,207.25,0.69]
[1759142516913,4.82395135,207.3,207.26,0.69]
[1759142517100,4.82373728,207.31,207.26,0.69]
[1759142517299,5.51373728,207.31,207.26,0.69]
[1759142517806,0.69,207.3,207.26,0.69]
[1759142518110,4.82373728,207.31,207.24,0.69]
[1759142518316,0.69,207.29,207.24,0.69]
[1759142519019,0.69,207.29,207.22,4.82578901]
[1759142519212,17.57297224,207.31,207.24,4.82532329]
[1759142519515,17.57297224,207.31,207.24,5.51532329]
[1759142520393,5.51373728,207.31,207.25,0.69]
[1759142521714,1.43210908,207.32,207.25,0.69]
[1759142522215,0.69,207.31,207.25,0.69]
[1759142522390,5.51380108,207.31,207.25,5.51489014]
[1759142522792,0.69,207.3,207.23,5.51532754]
[1759142523413,0.69,207.3,207.24,0.69]
[1759142524514,5.51405843,207.3,207.24,5.51510929]
[1759142525602,2.12210908,207.29,207.21,0.69]
[1759142526507,4.82439212,207.28,207.21,5.51589157]
[1759142526709,0.69,207.27,207.21,5.51589157]
[1759142527200,4.82439212,207.28,207.21,5.51589157]
[1759142527513,0.69,207.26,207.19,4.92636617]
[1759142527716,16.88537243,207.28,207.19,0.1]
[1759142527717,0.69,207.25,207.19,0.1]
[1759142528016,2.12210908,207.25,207.19,0.1]
[1759142528220,2.12210908,207.25,207.19,4.92644603]
[1759142528525,6.94727455,207.25,207.19,5.61644603]
[1759142529212,5.514731,207.27,207.2,0.69]
[1759142530115,5.514731,207.27,207.19,4.92644603]
[1759142530415,0.69,207.26,207.19,5.61644603]
[1759142530617,0.69,207.26,207.19,4.92644603]
[1759142530808,5.51485793,207.26,207.2,0.69]
[1759142531897,0.69,207.26,207.2,0.69]
[1759142532221,5.51487821,207.26,207.2,0.69]
[1759142532812,5.51487821,207.26,207.2,5.51608226]
[1759142533216,0.68,207.25,207.2,5.51608226]
[1759142533622,4.82487821,207.26,207.19,0.1]
[1759142533623,0.68,207.24,207.19,4.9264489]
[1759142533921,4.82487821,207.26,207.19,5.6264489]
[1759142534125,0.68,207.24,207.19,5.6264489]
[1759142534330,0.68,207.24,207.2,0.7]
[1759142534622,4.82537954,207.24,207.2,0.7]
[1759142534822,5.50537954,207.24,207.19,4.9264489]
[1759142535028,5.50537954,207.24,207.19,5.6264489]
[1759142535320,0.68,207.23,207.19,0.1]
[1759142535523,1.43210908,207.21,207.19,0.1]
[1759142535702,0.68,207.2,207.19,0.1]
[1759142536823,5.50625482,207.2,207.19,0.1]
[1759142537435,4.82582416,207.22,207.19,0.1]
[1759142537631,5.50582416,207.22,207.19,0.1]
[1759142538308,16.68507333,207.25,207.19,0.1]
[1759142538309,4.82509047,207.25,207.19,0.8]
[1759142538505,0.68,207.24,207.19,0.8]
[1759142538704,4.82509047,207.25,207.19,5.6264422]
[1759142538924,0.68,207.24,207.19,5.6264422]
[1759142539127,5.50537729,207.24,207.19,5.6264422]
[1759142539317,0.68,207.23,207.19,0.1]
[1759142539519,4.82537729,207.24,207.19,5.62648472]
[1759142539722,5.50537729,207.24,207.19,5.62648472]
[1759142540119,0.68,207.27,207.2,0.7]
[1759142541148,0.68,207.27,207.21,4.82602191]
[1759142541349,0.68,207.27,207.21,5.48602191]
[1759142542124,3.20648,207.3,207.21,4.82602191]
[1759142542447,2.11210908,207.3,207.22,0.66]
[1759142542936,2.11210908,207.3,207.22,38.16]
[1759142543138,4.82415939,207.29,207.23,0.66]
[1759142543339,4.82415939,207.29,207.23,5.48541697]
[1759142543647,3.88648,207.31,207.24,0.66]
[1759142543849,5.50378741,207.31,207.24,0.66]
[1759142544829,2.11210908,207.34,207.24,0.66]
[1759142545454,6.93510512,207.34,207.25,16.88781664]
[1759142545631,6.93510512,207.34,207.26,0.66]
[1759142546650,6.93510512,207.34,207.27,4.82462488]
[1759142546850,6.93510512,207.34,207.28,0.66]
[1759142547149,5.50300922,207.34,207.28,0.66]
[1759142548228,5.50300922,207.34,207.28,5.48419722]
[1759142548656,0.68,207.34,207.28,5.48419722]
[1759142549248,5.50308594,207.34,207.28,5.48419722]
[1759142550131,16.87967204,207.35,207.22,26.57528436]
[1759142550358,1.43210908,207.32,207.24,0.66]
[1759142550531,0.68,207.31,207.24,0.66]
[1759142551758,0.68,207.33,207.24,0.66]
[1759142552351,5.50342059,207.33,207.25,4.82509047]
[1759142552655,5.50342059,207.33,207.26,0.66]
[1759142553149,17.56149226,207.33,207.24,0.66]
[1759142553350,1.43210908,207.32,207.22,0.66]
[1759142553557,0.68,207.31,207.22,38.14]
[1759142553760,0.68,207.3,207.22,38.14]
[1759142553952,0.68,207.29,207.23,37.5]
[1759142554443,5.50419258,207.29,207.24,4.82532329]
[1759142554642,0.68,207.29,207.24,5.48532329]
[1759142555050,0.68,207.29,207.25,0.66]
[1759142555240,0.68,207.29,207.24,4.82532329]
[1759142555450,0.68,207.29,207.24,5.48532329]
[1759142556262,5.50428002,207.29,207.24,5.48532329]
[1759142556561,5.50428002,207.29,207.24,4.82532329]
[1759142556741,5.50428002,207.29,207.25,0.66]
[1759142556949,4.82428002,207.29,207.25,0.66]
[1759142557262,4.82394914,207.3,207.25,0.66]
[1759142557462,5.50394914,207.3,207.25,0.66]
[1759142557656,5.50394914,207.3,207.24,4.82532329]
[1759142557657,0.68,207.32,207.26,0.66]
[1759142557862,5.50350601,207.32,207.26,0.66]
[1759142558864,5.50350601,207.32,207.26,5.48485583]
[1759142561762,0.68,207.31,207.24,0.66]
[1759142562060,0.68,207.31,207.25,37.44]
[1759142562438,0.68,207.31,207.25,38.1]
[1759142562639,0.68,207.31,207.26,0.66]
[1759142562862,4.82369866,207.31,207.26,0.66]
[1759142563047,0.68,207.3,207.26,38.1]
[1759142563246,0.68,207.29,207.24,4.82529915]
[1759142563453,0.68,207.28,207.24,38.1]
[1759142563861,0.68,207.3,207.24,38.1]
[1759142564556,0.68,207.3,207.24,42.92527666]
[1759142565270,4.82415939,207.29,207.24,42.92527666]
[1759142565444,5.50415939,207.29,207.25,0.66]
[1759142568164,4.82415939,207.29,207.25,0.66]
[1759142568468,4.82415939,207.29,207.26,0.66]
[1759142568856,4.82398023,207.3,207.26,0.66]
[1759142569357,5.50398023,207.3,207.26,0.66]
[1759142570068,4.82398023,207.3,207.26,0.66]
[1759142570564,5.50398023,207.3,207.26,0.66]
[1759142570753,4.82359734,207.32,207.25,42.22491874]
[1759142570960,5.53359734,207.32,207.27,0.66]
[1759142571260,19.83132423,207.32,207.26,37.4]
[1759142571463,0.71,207.31,207.26,37.4]
[1759142571771,0.71,207.3,207.26,37.4]
[1759142572154,5.53415939,207.29,207.26,37.4]
[1759142572352,5.53415939,207.29,207.26,37.38]
[1759142572973,4.82415939,207.29,207.24,4.82527204]
[1759142573270,4.82393205,207.3,207.26,0.68]
[1759142573472,4.82393205,207.3,207.27,0.68]
[1759142575161,12.76865328,207.32,207.25,42.88495397]
[1759142575162,18.41928799,207.31,207.25,42.88495397]
[1759142575362,19.12928799,207.31,207.25,42.88495397]
[1759142575676,5.53369398,207.31,207.25,42.88495397]
[1759142576070,0.71,207.3,207.25,42.88495397]
[1759142576259,5.53396623,207.3,207.26,0.68]
[1759142576574,4.82396623,207.3,207.27,0.68]
[1759142577073,4.82373363,207.31,207.27,0.68]
[1759142577465,0.71,207.3,207.26,37.36]
[1759142577674,4.82373363,207.31,207.26,38.04]
[1759142577975,5.53373363,207.31,207.26,37.36]
[1759142578171,5.53373363,207.31,207.27,0.68]
[1759142578771,4.82350411,207.32,207.28,0.68]
[1759142578976,0.71,207.34,207.28,0.68]
[1759142579158,3.20648,207.35,207.28,0.68]
[1759142579358,3.20648,207.38,207.28,0.68]
[1759142579865,19.95720997,207.44,207.28,0.68]
[1759142580071,0.71,207.41,207.28,0.68]
[1759142580270,4.82160077,207.4,207.29,16.88455786]
[1759142580472,0.71,207.39,207.3,38.06]
[1759142580658,0.71,207.39,207.31,0.68]
[1759142581260,0.71,207.39,207.32,37.38]
[1759142581456,0.71,207.38,207.32,37.38]
[1759142581663,0.71,207.38,207.32,0.68]
[1759142581855,0.71,207.38,207.32,38.08]
[1759142582074,16.87560269,207.4,207.33,0.68]
[1759142582251,20.08661847,207.4,207.33,0.68]
[1759142582456,20.0,207.35,207.3,37.4]
[1759142582680,20.0,207.35,207.18,14.5]
[1759142582868,20.0,207.37,207.25,14.50782213]
[1759142583075,20.0,207.35,207.26,37.4]
[1759142583582,20.0,207.37,207.26,37.4]
[1759142584091,20.0,207.41,207.27,37.4]
[1759142584264,20.0,207.41,207.27,51.9]
[1759142584472,20.0,207.41,207.28,0.68]
[1759142584869,20.0,207.41,207.28,79.98]
[1759142585066,20.0,207.41,207.29,0.68]
[1759142586068,20.0,207.45,207.29,15.18]
[1759142586393,20.0,207.45,207.3,79.10337674]
[1759142586574,20.0,207.43,207.3,41.68337674]
[1759142586772,20.0,207.43,207.31,37.42]
[1759142586972,20.0,207.43,207.32,37.44]
[1759142587564,20.0,207.43,207.33,16.88130033]
[1759142589371,20.0,207.43,207.33,40.99744367]
[1759142589701,20.0,207.43,207.34,37.42]
[1759142589871,20.0,207.43,207.33,40.99744367]
[1759142590310,20.0,207.43,207.34,37.42]
[1759142592078,20.0,207.43,207.35,37.4]
[1759142593294,24.8209037,207.43,207.33,12.05807167]
[1759142593479,20.0,207.41,207.34,37.4]
[1759142594185,20.0,207.41,207.35,4.82276344]
[1759142595195,20.0,207.41,207.35,16.87967204]
[1759142595885,20.0,207.41,207.36,37.4]
[1759142597393,20.0,207.41,207.37,4.8222983]
[1759142597777,20.65,207.41,207.37,42.2222983]
[1759142598093,20.0,207.41,207.37,42.2222983]
[1759142601706,20.0,207.41,207.37,54.27804406]
[1759142602592,20.0,207.41,207.37,16.87804406]
[1759142602778,20.0,207.41,207.38,37.36]
[1759142603393,20.0,207.41,207.37,4.8222983]
[1759142603597,0.7,207.4,207.37,37.36]
[1759142604019,20.0,207.41,207.37,37.36]
[1759142604203,20.7,207.41,207.37,37.36]
[1759142605484,20.0,207.41,207.37,37.36]
[1759142605690,20.0,207.41,207.38,4.82206577]
[1759142606495,20.0,207.36,207.3,4.82392667]
[1759142606810,20.0,207.36,207.3,42.24392667]
[1759142607609,20.0,207.36,207.3,54.30374336]
[1759142610017,20.0,207.36,207.31,0.67]
[1759142610195,0.7,207.4,207.32,0.67]
[1759142610196,20.0,207.4,207.32,0.67]
[1759142611920,20.0,207.41,207.32,0.67]
[1759142612107,20.0,207.41,207.33,16.88130033]
[1759142612308,20.0,207.41,207.34,38.09]
[1759142613323,20.0,207.41,207.35,16.87967204]
[1759142613511,20.0,207.41,207.36,0.67]
[1759142614010,20.0,207.41,207.35,16.87967204]
[1759142614206,20.0,207.41,207.37,0.67]
[1759142615115,20.0,207.41,207.35,17.54967204]
[1759142617605,7.05930854,207.46,207.36,0.67]
[1759142617606,20.0,207.46,207.36,0.67]
[1759142617916,0.7,207.46,207.36,15.1687072]
[1759142618107,20.0,207.44,207.37,38.05]
[1759142618424,20.7,207.44,207.37,38.05]